Cogmind - Beta 14 @@@ ROGUE MODE // 2024.10.05 @ 17:28:01 Player: bluemonk Result: Destroyed by S-27 Virus with Autogun Performance ------------- Evolutions (6) 3000 Regions Visited (8) 1600 Robots Destroyed (75) 375 Value Destroyed (2528) 2528 Prototype IDs (7) 140 Alien Tech Used (0) 0 Bonus (74) 74 TOTAL SCORE: 7717 Bonus ------- High Alert Combat Kills 74 Cogmind --------- Core Integrity 0/1150 Matter 73/300 Energy 9/100 System Corruption 0% Temperature Cool (0) Movement Core (50) Location -4/Upper Caves Parts ------- > --- POWER (3) -------- (None) > --- PROPULSION (6) --- (None) > --- UTILITY (6) ------ Advanced Signal Interpreter Advanced Melee Analysis Suite Component Analysis Suite > --- WEAPON (4) ------- (None) > --- INVENTORY (5) ---- Cooled Pulse Rifle Heavy Flak Cannon Peak State ------------ > --- POWER ------------ Reinforced Deuterium Engine Micro Nuclear Core Micro Nuclear Core > --- PROPULSION ------- Aluminum Leg Aluminum Leg Carbon-fiber Leg Titanium Leg Improved Carbon-fiber Leg > --- UTILITY ---------- Advanced Signal Interpreter Advanced Melee Analysis Suite Advanced Melee Analysis Suite Layered Light Armor Plating Component Analysis Suite Mini Drone Bay > --- WEAPON ----------- Improved Arc Projector Cooled Pulse Rifle Antimatter Cannon Chainsword > --- INVENTORY -------- Cooled Pulse Rifle Heavy Flak Cannon [Rating: 75] Favorites ----------- Power Micro Nuclear Core Engine Reinforced Deuterium Engine Power Core Micro Nuclear Core Propulsion Aluminum Leg Treads Light Treads Leg Aluminum Leg Wheel Subdweller Monowheel Hover Unit Improved Hover Unit Flight Unit VTOL Module Utility Small Storage Unit Device Weapon Cycler Storage Small Storage Unit Processor Advanced Melee Analysis Suite Hackware System Shield Protection Layered Light Armor Plating Weapon Cooled Pulse Rifle Energy Gun Cooled Pulse Rifle Energy Cannon Matter Neutralizer Ballistic Gun Assault Rifle Ballistic Cannon Flak Cannon Launcher Heavy Missile Launcher Slashing Weapon Katana Special Melee Weapon Datajack Build | -11 -10 -10 -8 -7 -6 -5 -4 -4 ------- Run | Yrd Mat Sub Mat Fac Fac Fac Fac Upp Slots Evolved 12 | . . . 4 2 2 2 2 . Power 2 | . . . . 1 . 1 . . Propulsion 4 | . . . 2 . 1 . 1 . Utility 4 | . . . 1 1 . 1 1 . Weapon 2 | . . . 1 . 1 . . . Parts Attached 87 | 6 2 10 36 16 10 3 2 2 Power 15 | 1 1 3 4 4 1 1 . . Engine 9 | 1 1 3 2 2 . . . . Core 6 | . . . 2 2 1 1 . . Reactor . | . . . . . . . . . Propulsion 25 | 2 . 2 13 3 4 . 1 . Treads 1 | . . . 1 . . . . . Leg 14 | 2 . 1 5 3 3 . . . Wheel 2 | . . 1 1 . . . . . Hover 6 | . . . 5 . 1 . . . Flight 2 | . . . 1 . . . 1 . Utility 23 | 1 1 1 10 5 3 1 1 . Device 13 | . 1 1 5 5 . 1 . . Storage 3 | 1 . . 2 . . . . . Processor 3 | . . . . . 2 . 1 . Hackware 1 | . . . 1 . . . . . Protection 3 | . . . 2 . 1 . . . Artifact . | . . . . . . . . . Weapon 24 | 2 . 4 9 4 2 1 . 2 Energy Gun 10 | 1 . 1 5 2 . 1 . . Energy Cannon 1 | . . . . . . . . 1 Ballistic Gun 2 | 1 . 1 . . . . . . Ballistic Cannon 4 | . . . 1 . 2 . . 1 Launcher 3 | . . 1 1 1 . . . . Special Weapon . | . . . . . . . . . Impact Weapon . | . . . . . . . . . Slashing Weapon 2 | . . . 1 1 . . . . Piercing Weapon . | . . . . . . . . . Special Melee Weapon 2 | . . 1 1 . . . . . Unidentified Prototypes 3 | . . . 1 1 1 . . . Parts Lost 48 | . . 9 17 4 . . 2 16 Power 7 | . . 2 2 . . . . 3 Propulsion 16 | . . 2 6 2 . . 2 4 Utility 11 | . . 1 5 2 . . . 3 Weapon 14 | . . 4 4 . . . . 6 Highest Loss Streak 13 | . . 4 5 2 . . 2 13 To Critical Strikes 2 | . . 1 . . . . . 1 Average Slot Usage (%) 88 | . 99 94 76 96 97 94 88 43 Engine 8 | . 14 14 4 7 6 5 5 2 Core 3 | . . . 4 5 6 11 10 5 Leg 22 | . 28 24 14 29 31 29 19 3 Hover 1 | . . . 5 . . . . . Device 15 | . 13 13 12 25 15 5 10 6 Storage 6 | . 14 14 6 . . . . . Processor 1 | . . . . . 3 11 14 14 Protection 1 | . . . 2 . 5 5 5 1 Energy Gun 8 | . 14 5 9 6 6 5 10 3 Ballistic Gun 3 | . 14 6 . . . . . . Ballistic Cannon 2 | . . . 2 2 5 5 5 2 Launcher 3 | . . 4 3 4 6 5 . . Slashing Weapon 4 | . . . 7 7 6 5 5 1 Special Melee Weapon 1 | . . 7 1 . . . . . Peak Build Rating 75 | 6 7 11 35 52 63 70 75 75 Average Rating 27 | 4 6 8 21 45 54 63 73 39 On Entrance 34 | . 6 7 11 35 45 58 70 75 Naked Turns . | . . . . . . . . . Heaviest Build 54 | 14 15 21 37 42 51 54 54 54 Greatest Support 70 | 20 20 20 54 62 70 70 70 50 Greatest Overweight (x) 9 | . . 2 7 . 1 . 1 9 Average Overweight (x) . | . . . . . . . . . Largest Inventory Capacity 8 | 8 8 8 5 5 5 5 5 5 Average Capacity 6 | 6 8 8 5 5 5 5 5 5 Most Carried 8 | 6 8 8 5 5 5 4 2 2 Average Carried 4 | 2 7 5 3 4 3 3 2 2 Final Capacity 8 | 8 8 8 5 5 5 5 5 5 Final Carried 8 | 6 8 5 4 5 4 2 2 2 Class Distribution -------------------- 56% | Mutant 25% | Scavenger-Mutant 13% | Tank 3% | Subdweller-Mutant Dominant Class ---------------- Mutant | -10/Materials Mutant | -10/Subcaves Scavenger-Mutant | -8/Materials Mutant | -7/Factory Tank | -6/Factory Tank | -5/Factory Tank | -4/Factory Mutant | -4/Upper Caves Resources | -11 -10 -10 -8 -7 -6 -5 -4 -4 ----------- Run | Yrd Mat Sub Mat Fac Fac Fac Fac Upp Matter Collected 1643 | 227 . 204 644 301 129 24 114 . Remotely . | . . . . . . . . . Salvage Created 2013 | . 122 211 691 536 129 24 93 207 Parts 108 | . 7 10 35 31 6 3 5 11 Haulers Intercepted . | . . . . . . . . . Recyclers Shooed 2 | . . . 1 . . . 1 . Parts Field Recycled . | . . . . . . . . . Retrieved Matter . | . . . . . . . . . Parts Self-Destructed 29 | . . 19 . . . . . 10 Prevented 1 | . . 1 . . . . . . Kills | -11 -10 -10 -8 -7 -6 -5 -4 -4 ------- Run | Yrd Mat Sub Mat Fac Fac Fac Fac Upp Combat Hostiles Destroyed 61 | . 2 9 20 19 1 . 4 6 Melee 9 | . . . 3 2 . . 3 1 Guns 22 | . 2 6 9 1 1 . 1 2 Cannons 10 | . . . 4 3 . . . 3 AOE 20 | . . 3 4 13 . . . . Classes Destroyed 15 | . 2 3 6 4 . . . . Worker 6 | . . . 2 2 2 . . . Tunneler 2 | . . . 1 . . 1 . . Recycler 1 | . . . . 1 . . . . Mechanic 1 | . . . . 1 . . . . Operator 2 | . . . 1 . 1 . . . Watcher 2 | . 1 . 1 . . . . . Swarmer 24 | . . 5 3 8 . . 4 4 Grunt 24 | . 2 1 11 8 . . . 2 Brawler 2 | . . . . 2 . . . . Duelist 1 | . . . 1 . . . . . Sentry 4 | . . 1 2 . 1 . . . Specialist 2 | . . . 2 . . . . . Hunter 1 | . . . 1 . . . . . Programmer 1 | . . . . 1 . . . . Subdweller 2 | . . 2 . . . . . . Best Kill Streak 11 | . 3 3 8 11 2 1 4 5 Combat Bots Only 9 | . 2 3 6 9 1 . 4 5 Max Kills in Single Turn 3 | . 1 2 2 3 1 1 1 1 Gunslinging . | . . . . . . . . . Exploded 2 | . . 2 1 2 . . . . Melee 1 | . . . 1 1 . . 1 1 Uniques/NPCs Destroyed . | . . . . . . . . . Combat | -11 -10 -10 -8 -7 -6 -5 -4 -4 -------- Run | Yrd Mat Sub Mat Fac Fac Fac Fac Upp Hostile Shots Fired 555 | . 10 96 152 57 18 . 38 184 Missed 168 | . 4 27 45 20 12 . 9 51 Damage Taken 6043 | . 66 839 1566 724 46 . 439 2363 Core 1731 | . 12 166 328 49 18 . 44 1114 Absorbed by Shields . | . . . . . . . . . Core Remaining (%) 76 | 100 . 28 40 93 97 100 . . Volleys Fired 193 | . 16 34 84 35 5 . 4 15 Largest 3 | . 1 2 2 2 2 . 3 3 Hottest 165 | . 40 85 130 104 73 . 125 165 Shots Fired 288 | . 16 50 124 52 7 . 12 27 Gun 194 | . 16 45 87 21 5 . 8 12 Cannon 47 | . . . 20 6 2 . 4 15 Launcher 47 | . . 5 17 25 . . . . Special . | . . . . . . . . . Kinetic 80 | . 1 30 25 6 2 . 4 12 Thermal 136 | . . 7 87 21 5 . 4 12 Explosive 37 | . . . 12 25 . . . . Electromagnetic 35 | . 15 13 . . . . 4 3 Robot Hit Streak 14 | . 8 14 11 12 13 . 4 10 Robot Miss Streak 9 | . 2 3 6 9 3 . 2 2 Penetration Max . | . . . . . . . . . Secondary Targets 1 | . . 1 . . . . . . Max Gunslinging Chain 1 | . . 1 . . . . . . Shots Hit Robots 246 | . 11 41 110 38 10 1 15 20 Core Hits 180 | . 5 16 92 44 6 1 3 13 Critical Kills . | . . . . . . . . . Critical Parts Destroyed . | . . . . . . . . . Critical Strikes 6 | . . 1 2 1 1 . 1 . Burn 3 | . . . 2 . 1 . . . Destroy 1 | . . 1 . . . . . . Sever 2 | . . . . 1 . . 1 . Melee Attacks 48 | . . 2 16 12 4 1 11 2 Impact . | . . . . . . . . . Slashing 43 | . . . 13 12 4 1 11 2 Piercing . | . . . . . . . . . Sneak Attacks 10 | . . 2 4 . 2 1 1 . Combat Hostiles . | . . . . . . . . . Follow-up Attacks . | . . . . . . . . . Damage Inflicted 7809 | . 158 804 2497 2740 361 81 534 634 Guns 2342 | . 158 458 996 338 152 . 42 198 Cannons 928 | . . . 339 113 22 . 99 355 Explosions 3214 | . . 346 816 2052 . . . . Melee 1325 | . . . 346 237 187 81 393 81 Ramming . | . . . . . . . . . Kinetic 1853 | . 14 613 673 113 22 . 99 319 Thermal 1913 | . . 46 996 495 152 . 18 206 Explosive 2377 | . . . 482 1895 . . . . Electromagnetic 341 | . 144 145 . . . . 24 28 Impact . | . . . . . . . . . Slashing 1325 | . . . 346 237 187 81 393 81 Piercing . | . . . . . . . . . Highest Corruption . | . . . . . . . . . Average Corruption . | . . . . . . . . . Corruption Purged . | . . . . . . . . . Corruption Blocked . | . . . . . . . . . Overload Shots 7 | . . . 1 2 3 . . 1 Overflow Damage 268 | . . . 55 85 42 . 86 . Projectiles 19 | . . . . . . . 19 . Explosions 90 | . . . 37 53 . . . . Melee 159 | . . . 18 32 42 . 67 . Knockbacks 9 | . . . 2 1 1 . 2 3 Impact . | . . . . . . . . . Kinetic 8 | . . . 2 1 1 . 2 2 Secondary 1 | . . . . . . . . 1 Self-Inflicted Damage 221 | . . . 76 145 . . . . Shots 7 | . . . 2 5 . . . . Rammed . | . . . . . . . . . Targets Rammed . | . . . . . . . . . Kicked . | . . . . . . . . . Crushed . | . . . . . . . . . Highest Temperature 488 | . 36 2 488 388 . . 324 387 Average Temperature 172 | . 24 2 186 132 . . 164 216 Received Heat Transfer 1368 | . 36 315 585 189 12 . . 231 Effects 13 | . . . 7 2 . . 1 3 Shutdowns 7 | . . . 3 1 . . . 3 Energy Bleed 2 | . . . 2 . . . . . Matter Decay 1 | . . . . . . . 1 . Short Circuit 1 | . . . . 1 . . . . Damage (minor) 2 | . . . 2 . . . . . Siege Activations . | . . . . . . . . . Robots Corrupted . | . . . . . . . . . Combat Hostiles . | . . . . . . . . . Parts Fried . | . . . . . . . . . Impact Corruptions . | . . . . . . . . . Robots Melted . | . . . . . . . . . Combat Hostiles . | . . . . . . . . . Parts Melted 6 | . . 2 1 1 1 . . 1 Heat Transferred 3340 | . . 111 1867 681 298 . 37 346 Parts Sabotaged . | . . . . . . . . . Parts Stolen . | . . . . . . . . . Parts Stripped . | . . . . . . . . . Power Chain Reactions . | . . . . . . . . . Alert | -11 -10 -10 -8 -7 -6 -5 -4 -4 ------- Run | Yrd Mat Sub Mat Fac Fac Fac Fac Upp Peak Influence 591 | . 101 . 338 591 378 189 194 . Initial 289 | . . . 31 153 289 184 92 . Average 169 | . 45 . 183 213 320 184 156 . Maximum Alert Level 2 | . . . 1 2 1 . . . Low Security (%) 59 | 100 100 . 49 46 . 100 100 . Level 1 38 | . . . 50 42 100 . . . Level 2 2 | . . . . 10 . . . . Level 3 . | . . . . . . . . . Level 4 . | . . . . . . . . . Level 5 . | . . . . . . . . . High Security . | . . . . . . . . . Max Security . | . . . . . . . . . Squads Dispatched 7 | . 1 . 3 2 1 . . . Investigation . | . . . . . . . . . Extermination 1 | . . . . 1 . . . . Reinforcement 6 | . 1 . 3 1 1 . . . Assault . | . . . . . . . . . Garrison . | . . . . . . . . . Intercept . | . . . . . . . . . Searches Triggered . | . . . . . . . . . Construction Impeded 1 | . . . . 1 . . . . Haulers Reinforced . | . . . . . . . . . Active Scanning Responses . | . . . . . . . . . Cargo Convoy Interrupts . | . . . . . . . . . Stealth | -11 -10 -10 -8 -7 -6 -5 -4 -4 --------- Run | Yrd Mat Sub Mat Fac Fac Fac Fac Upp Distress Signals 2 | . 1 . 1 . . . . . Communications Jammed . | . . . . . . . . . Distress Signals . | . . . . . . . . . Times Spotted 117 | . 4 14 39 25 3 . 5 27 Peak Tracking Total 14 | . 3 6 6 5 1 . 4 14 Tactical Retreats 7 | . . 2 2 1 . . 1 1 Traps | -11 -10 -10 -8 -7 -6 -5 -4 -4 ------- Run | Yrd Mat Sub Mat Fac Fac Fac Fac Upp Traps Triggered 3 | . 1 1 . 1 . . . . Indirectly . | . . . . . . . . . Trap Hack Attempts 14 | . . 14 . . . . . . Triggered . | . . . . . . . . . Disarmed . | . . . . . . . . . Reprogrammed 3 | . . 3 . . . . . . Reused . | . . . . . . . . . Traps Extracted . | . . . . . . . . . Installed . | . . . . . . . . . Triggered 2 | . . 2 . . . . . . Machines | -11 -10 -10 -8 -7 -6 -5 -4 -4 ---------- Run | Yrd Mat Sub Mat Fac Fac Fac Fac Upp Machines Disabled 9 | . . . 6 3 . . . . Max in Single Turn 2 | . . . 2 1 . . . . Machines Repaired . | . . . . . . . . . Machines Dismantled . | . . . . . . . . . Machines Sabotaged . | . . . . . . . . . Overloaded Fab Kills . | . . . . . . . . . Hacking | -11 -10 -10 -8 -7 -6 -5 -4 -4 --------- Run | Yrd Mat Sub Mat Fac Fac Fac Fac Upp Machines Accessed 18 | . 3 . 5 4 4 . 2 . Terminals 12 | . 2 . 4 3 2 . 1 . Fabricators . | . . . . . . . . . Repair Stations 1 | . . . . . 1 . . . Recycling Units 1 | . 1 . . . . . . . Scanalyzers 4 | . . . 1 1 1 . 1 . Garrison Access . | . . . . . . . . . Total Hacks 47 | . 7 . 22 7 8 . 3 . Successful 26 | . 3 . 13 3 6 . 1 . Failed 20 | . 3 . 9 4 2 . 2 . Catastrophic 3 | . . . 1 2 . . . . Database Lockouts 1 | . 1 . . . . . . . Manual 16 | . 8 . 8 . . . . . Terminals 27 | . 6 . 11 5 3 . 2 . Fabricators . | . . . . . . . . . Repair Stations 1 | . . . . . 1 . . . Recycling Units 1 | . 1 . . . . . . . Scanalyzers 18 | . . . 11 2 4 . 1 . Garrison Access . | . . . . . . . . . Terminal Hacks 9 | . 2 . 3 1 2 . 1 . Record 3 | . . . . 1 1 . 1 . Prototype ID Bank 2 | . 1 . 1 . . . . . Open DSF 1 | . . . . . 1 . . . Branch Access Points 2 | . 1 . 1 . . . . . Registered Components 1 | . . . 1 . . . . . Fabricator Hacks . | . . . . . . . . . Repair Station Hacks . | . . . . . . . . . Recycling Unit Hacks 1 | . 1 . . . . . . . Report Inventory 1 | . 1 . . . . . . . Scanalyzer 16 | . . . 10 2 4 . . . Insert Component 7 | . . . 4 1 2 . . . Analyze 9 | . . . 6 1 2 . . . Garrison Access Hacks . | . . . . . . . . . Unauthorized Hacks . | . . . . . . . . . Terminals . | . . . . . . . . . Fabricators . | . . . . . . . . . Repair Stations . | . . . . . . . . . Recycling Units . | . . . . . . . . . Scanalyzers . | . . . . . . . . . Garrison Access . | . . . . . . . . . Data Cores Recovered . | . . . . . . . . . Used . | . . . . . . . . . Hacking Detections 16 | . 2 . 5 4 3 . 2 . Full Trace Events . | . . . . . . . . . Feedback Events . | . . . . . . . . . Feedback Blocked . | . . . . . . . . . Robot Schematics Acquired . | . . . . . . . . . Robots Built . | . . . . . . . . . Authchips . | . . . . . . . . . Time . | . . . . . . . . . Total Robot Build Rating . | . . . . . . . . . Part Schematics Acquired 7 | . . . 4 1 2 . . . Parts Built . | . . . . . . . . . Authchips . | . . . . . . . . . Time . | . . . . . . . . . Total Part Build Rating . | . . . . . . . . . Parts Repaired . | . . . . . . . . . Time . | . . . . . . . . . Parts Recycled . | . . . . . . . . . Recycled Matter . | . . . . . . . . . Retrieved Matter . | . . . . . . . . . Retrieved Components . | . . . . . . . . . Parts Scanalyzed 7 | . . . 4 1 2 . . . Part Schematics Acquired 7 | . . . 4 1 2 . . . Parts Damaged . | . . . . . . . . . Bothacking | -11 -10 -10 -8 -7 -6 -5 -4 -4 ------------ Run | Yrd Mat Sub Mat Fac Fac Fac Fac Upp Used RIF Installer . | . . . . . . . . . Robots Hacked 3 | . . 1 2 . . . . . Non-combat 3 | . . 1 2 . . . . . Combat . | . . . . . . . . . Robot Hacks Applied 3 | . . 1 2 . . . . . parse_system 1 | . . 1 . . . . . . no_distress 1 | . . . 1 . . . . . check_alert 1 | . . . 1 . . . . . Relay Couplers Released . | . . . . . . . . . Fabnet Peak Effective % . | . . . . . . . . . Robots Rewired . | . . . . . . . . . Allies Hacked . | . . . . . . . . . Hacks Repelled . | . . . . . . . . . Allies | -11 -10 -10 -8 -7 -6 -5 -4 -4 -------- Run | Yrd Mat Sub Mat Fac Fac Fac Fac Upp Total Allies . | . . . . . . . . . Largest Group . | . . . . . . . . . Highest-Rated Group . | . . . . . . . . . Highest-Rated Ally . | . . . . . . . . . Total Orders 3 | . . . . . . . . 3 EXPLORE 3 | . . . . . . . . 3 Ally Attacks . | . . . . . . . . . Total Damage . | . . . . . . . . . Kills . | . . . . . . . . . Allies Corrupted . | . . . . . . . . . Allies Melted . | . . . . . . . . . Intel | -11 -10 -10 -8 -7 -6 -5 -4 -4 ------- Run | Yrd Mat Sub Mat Fac Fac Fac Fac Upp Robot Analysis Total . | . . . . . . . . . Derelict Logs Recovered 1 | . . 1 . . . . . . Drone Launches 3 | . . . . . . . . 3 Drone Recoveries 1 | . . . . . . . . 1 Exploration | -11 -10 -10 -8 -7 -6 -5 -4 -4 ------------- Run | Yrd Mat Sub Mat Fac Fac Fac Fac Upp Turns Passed 3839 | 70 671 581 1154 699 325 66 148 125 Spaces Moved 2072 | 49 154 362 604 475 230 47 64 87 Core 92 | 5 . . 11 . . . . 76 Treads . | . . . . . . . . . Legs 1720 | 44 154 267 428 475 230 47 64 11 Wheels 135 | . . 95 40 . . . . . Hover 125 | . . . 125 . . . . . Flight . | . . . . . . . . . Fastest Speed 48 | 50 120 120 48 113 122 122 122 50 Average Speed 122 | 112 120 124 129 115 122 122 161 87 Slowest Speed 500 | 120 120 260 400 123 193 122 193 500 Overloaded Moves . | . . . . . . . . . Propulsion Burnouts . | . . . . . . . . . Robots Hopped . | . . . . . . . . . Cave-ins Triggered . | . . . . . . . . . Exploration Rate (%) 16 | 3 28 25 37 17 8 2 1 23 Regions Visited 8 Branch Regions 2 Pre-discovered Areas 1 | . . 1 . . . . . . Known Exits Taken 3 | . . . . . 1 1 1 . Unknown Exits Taken 5 | 1 1 1 1 1 . . . . Scrap Searched 4 | . . 2 . . . . . 2 Spaces Dug . | . . . . . . . . . Terrain Destroyed 301 | . . 65 124 107 . . 1 4 Melee . | . . . . . . . . . Projectile 5 | . . . . . . . 1 4 AOE 296 | . . 65 124 107 . . . . Terrain Rammed . | . . . . . . . . . Walls Destroyed . | . . . . . . . . . Machines Disabled . | . . . . . . . . . Actions | -11 -10 -10 -8 -7 -6 -5 -4 -4 --------- Run | Yrd Mat Sub Mat Fac Fac Fac Fac Upp Total 3033 | 60 624 439 830 573 263 54 82 108 Wait 514 | . 445 12 46 7 . . 2 2 Move 2064 | 48 153 361 603 474 229 46 63 87 Hop . | . . . . . . . . . Pick Up 52 | 6 5 4 20 9 6 2 . . Fast Attach 50 | 6 2 2 23 9 4 . 2 2 Attach 25 | . . 7 8 3 5 2 . . Detach 2 | . . . 1 1 . . . . Swap 12 | . . 1 5 4 1 1 . . Drop 54 | . 3 2 24 14 9 2 . . Fire 193 | . 16 34 84 35 5 . 4 15 Melee 48 | . . 2 16 12 4 1 11 2 Ram . | . . . . . . . . . Kick . | . . . . . . . . . Crush . | . . . . . . . . . Escape Stasis 5 | . . . . 5 . . . . Rewire . | . . . . . . . . . Trap 14 | . . 14 . . . . . . Miscellaneous . | . . . . . . . . . Route ------- -11/Scrapyard -10/Materials (discovered 3 exits: [*Mat] / Min / [*Sub]) -10/Subcaves (discovered 2 exits: *Mat / [*Rec]) -8/Materials -7/Factory -6/Factory -5/Factory -4/Factory -4/Upper Caves History --------- Turn | Location | Event 2 | -11/Scrapyard | Discovered new exit (range 16) 71 | -11/Scrapyard | Entered Materials 241 | -10/Materials | Discovered new exit (range 8) 269 | -10/Materials | Central database locked down 269 | -10/Materials | Identified exit to Mines 318 | -10/Materials | Build established: Mutant 721 | -10/Materials | Discovered new exit (range 5) 742 | -10/Materials | Entered Subcaves 761 | -10/Subcaves | Ambushed by Subdwellers from Twisted Machinery 957 | -10/Subcaves | Discovered new exit (range 11) 985 | -10/Subcaves | Core integrity fell below 50% 1021 | -10/Subcaves | Lost 4 parts (1p1u2w) 1306 | -10/Subcaves | Discovered new exit (range 14) 1323 | -10/Subcaves | Entered Materials 1323 | -8/Materials | Evolved 4 slots: Propulsion x2, Utility x1, Weapon x1 1510 | -8/Materials | Lost 3 parts (1n1u1w) 1588 | -8/Materials | Lost 4 parts (2n1u1w) 1681 | -8/Materials | Lost 5 parts (2n2u1w) 1994 | -8/Materials | Build established: Scavenger-Mutant 2313 | -8/Materials | Core integrity fell below 50% 2366 | -8/Materials | Discovered new exit (range 16) 2477 | -8/Materials | Entered Factory 2477 | -7/Factory | Evolved 2 slots: Power x1, Utility x1 3085 | -7/Factory | Build established: Mutant 3124 | -7/Factory | Discovered new exit (range 15) 3164 | -7/Factory | Destroyed 9 combat bots 3176 | -7/Factory | Entered another Factory area 3176 | -6/Factory | Evolved 2 slots: Propulsion x1, Weapon x1 3489 | -6/Factory | Discovered new exit (range 7) 3499 | -6/Factory | Identified exit to Factory 3501 | -6/Factory | Entered another Factory area 3501 | -5/Factory | Evolved 2 slots: Power x1, Utility x1 3538 | -5/Factory | Build established: Tank 3555 | -5/Factory | Discovered new exit (range 5) 3565 | -5/Factory | Identified exit to Factory 3567 | -5/Factory | Entered another Factory area 3567 | -4/Factory | Evolved 2 slots: Propulsion x1, Utility x1 3601 | -4/Factory | Discovered new exit (range 8) 3713 | -4/Factory | Identified exit to Upper Caves 3715 | -4/Factory | Entered Upper Caves 3800 | -4/Upper Caves | Attracted the attention of an 0b10 base 3805 | -4/Upper Caves | Core integrity fell below 50% 3822 | -4/Upper Caves | Lost 13 parts (3p4n2u4w) 3830 | -4/Upper Caves | Core integrity fell below 20% 3840 | -4/Upper Caves | Destroyed by S-27 Virus with Autogun Last Messages --------------- Penetrated by Slug. Slug penetrates Wall. S-27 Virus springs to life. Searching scrap... Found Matter Neutralizer. Found Authchip [R/Combat]. Found 45 Matter. Acquired Matter Neutralizer. Matter Neutralizer destroyed. Searching scrap... Found Armor Integrity Analyzer. Found Hyp. Mass Driver. Found Hpw. Tractor Beam. Found Hvy. Gauss Cannon. Found 66 Matter. Acquired Hyp. Mass Driver. Adv. Melee Analysis Suite destroyed. S-27 Virus knocked back. S-27 Virus destroyed. Hyp. Mass Driver destroyed. Map ----- +----------------------------------------------------+ | ?????????????????????????????????????????????????? | | ?????????????????????????????????????????????????? | | ?????????????????????????????????????????????????? | | ?????????????????????????????????????????????????? | | ??????????????####???????#####?????????????#####?? | | ?????????###??# ####???## ##???????????## ##? | | ?????????# ### ##??? ##??????????# # #? | | ?????????# #????# ###?######## # | | ??????????# ######## ### # | | ??????????## ### ## | | ???????????## ## # # #? # | | ??????####??# ######//++###### #?# # #??## | | ?? ???# #?# #""""" """""# #?# ## ##???? | | ?? ???# ## #?" " " " # ##?# #####????? | | ???? ### # # ##?## #????????? | | # *% # # #?## ##???????? | | ## ! #" # ###"+sg### # ### # #??#####? | | ?????# %! ## # #" Y "#% " ## ### ## | | ??????# ## " #" "# /% # # # # ? | | ??????## / #" g!"# /%% # # #? | | ???????# # + g %Y %"% # ##? | | ??????# #### #### s""""s ###"% ## ## | | ??????#?????# #"""g """"]s"?]# # | | ????????????# #""" """"% "?]# " # ## # # | | ????????????# #""Tsss ! "?]# "# ### # # | | ????????????# #""" [% @ "?]# "## ##?# | | ????????????# ################ #### ##??## # | | ???????# ### #?# ##???## | | ???????# % #?## ##???## | | ???????# ###"# ### #####??## # #?????# | | ???????####### #??## #???????## ##?????# | | ?????????????# #??## #????????# #?????? | | ????????????## ### #####?????## ##????? | | ????????????# ## #?###?## ###??? | | ????????????## ### ### # ##?? | | ?????????????# # #?? | | ?????????????## ## # ### #?? | | ??????????????# ### #### #?? | | ??????????????## #?# ##??#### ## # ##?? | | ???????????????# ### #?????# #??? | | ???????????????## ??# #?????### #### #?? | | ????????????????#####??## ##???????#####???## #? | | ????????????????????????####??????????????????###? | | ?????????????????????????????????????????????????? | | ?????????????????????????????????????????????????? | | ?????????????????????????????????????????????????? | | ?????????????????????????????????????????????????? | | ?????????????????????????????????????????????????? | | ?????????????????????????????????????????????????? | | ?????????????????????????????????????????????????? | +----------------------------------------------------+ Best States ------------- Heat Dissipation 64 Energy Generation 36 Energy Capacity 475 Matter Stores 374 Matter Capacity 400 Sight Range 21 Terrain Scan Range 14 Terrain Scan Density 10 Armor Coverage 800 Resistance: EX 25 Weapon Cycling 30 Evasion (%) 55 Melee Accuracy 16 Particle Charging 15 Defensive Hacking 10 Item Schematics ----------------- Lgt. Nuclear Core | -8/Materials | Scanalyzed Med. Matter Pod | -8/Materials | Scanalyzed Particle Gun | -8/Materials | Scanalyzed Datajack | -8/Materials | Scanalyzed Aluminum Leg | -7/Factory | Scanalyzed Lgt. Deuterium Engine | -6/Factory | Scanalyzed Cld. Pulse Rifle | -6/Factory | Scanalyzed Robot Schematics ------------------ None Fabricated ------------ Nothing Alien Tech Used ----------------- None Achievements -------------- Hehehe Challenges ------------ None Game ------ Seed CoolingLaserProtomatter Manual? 0 Play Time 01:03:22 Cumulative 22.8 hours Start 2024.10.05 @ 16:26:10 End 2024.10.05 @ 17:28:01 Sessions 1 Manual Loads 0 Difficulty Rogue Special Mode None Game No. 35 Rogue 35 Adventurer 0 Explorer 0 Win Type - Total 0 Types 0/0/0/0/0/0/0/0/0 Lore% 9 Gallery% 28 Achievement% 21 Wizard Run 0 Options --------- Layout 1 ASCII 0 Keyboard 0 Movement Numpad Keybinds 0 Fullscreen 1 Font 24/Smallcaps Map View 50x35 Zoom Use 0% Tactical HUD 0 Map Filters NONE Filters NONE Steam 1 RUN: 850a86bc-3788-44df-98df-357cfb192469